Workbook

Sheet Total
E3: Name | F3: Target | G3: Club | H3: Category | I3: University | J3: Single/Double | K3: AM Score | L3: PM Score | M3: Total | N3: AM Hits | O3: PM Hits | P3: Total Hits | Q3: AM Golds | R3: PM Golds | S3: Total Golds | T3: Exp/Nov | W3: Men's Experienced Recurve | X3: Men's Experienced Compound | Y3: Men's Experienced Barebow | Z3: Men's Experienced Longbow
E4: Marcus Thewlis | F4: 1d | H4: Men's Experienced Compound | I4: Plymouth | J4: Morning | M4: =SUM(K4+L4) -> 0 | P4: =SUM(N4+O4) -> 0 | S4: =SUM(Q4+R4) -> 0 | V4: 1st | W4: Joe Tripp, 575, 60 hits, 36 golds | X4: No Archer Submitted | Y4: Lonja Selter, Plymouth, 527, 60 hits, 15 golds | Z4: Joe Barham, Exeter, 356, 60 hits, 4 golds
F5: 8d | J5: Morning | M5: =SUM( K5+L5) -> 0 | P5: =SUM(N5+O5) -> 0 | S5: =SUM(Q5+R5) -> 0 | V5: 2nd | W5: Alex Rowe, 566, 60 hits, 33 golds | X5: No Archer Submitted | Y5: Will Black, Bristol, 478, 60 hits, 8 golds | Z5: Matt Burrell, Plymouth, 179, 38 hits, 0 golds
F6: 9d | J6: Morning | M6: =SUM( K6+L6) -> 0 | P6: =SUM(N6+O6) -> 0 | S6: =SUM(Q6+R6) -> 0 | V6: 3rd | W6: Jonathan Hui, Exeter, 559, 59 hits, 33 golds | X6: No Archer Submitted | Y6: Will Firth, Exeter, 452, 60 hits, 6 golds | Z6: No Archer Submitted
F7: 1c | J7: Afternoon | M7: =SUM(K7+L7) -> 0 | P7: =SUM(N7+O7) -> 0 | S7: =SUM(Q7+R7) -> 0 | W7: Lady's Experienced Recurve | X7: Lady's Experienced Compound | Y7: Lady's Experienced Barebow | Z7: Lady's Experienced Longbow
E8: Fabian Khoo | F8: 9a | H8: Men's Novice Recurve | I8: Plymouth | J8: Morning | M8: =SUM( K8+L8) -> 0 | P8: =SUM(N8+O8) -> 0 | S8: =SUM(Q8+R8) -> 0 | V8: 1st | W8: Phobe Nobel, Bristol, 543, 60 hits, 22 golds | X8: No Archer Submitted | Y8: Maddie Speed, Exeter, 465, 60 hits, 10 golds | Z8: Emma King, Plymouth, 268, 50 hits, 1 gold
F9: 7d | J9: Afternoon | M9: =SUM(K9+L9) -> 0 | P9: =SUM(N9+O9) -> 0 | S9: =SUM(Q9+R9) -> 0 | V9: 2nd | W9: Surabhi Desai, Exeter, 516, 60 hits, 8 holds | X9: No Archer Submitted | Y9: Rachel Osman, Exeter, 417, 59 hits, 8 golds | Z9: No Archer Submitted
F10: 8a | J10: Afternoon | M10: =SUM(K10+L10) -> 0 | P10: =SUM(N10+O10) -> 0 | S10: =SUM(Q10+R10) -> 0 | V10: 3rd | W10: Amy Roberts, Plymouth, 476, 60 hits, 7 golds | X10: No Archer Submitted | Y10: Beth Cornford, Plymouth, 312, 54 hits, 0 golds | Z10: No Archer Submitted
F11: 8b | J11: Afternoon | M11: =SUM(K11+L11) -> 0 | P11: =SUM(N11+O11) -> 0 | S11: =SUM(Q11+R11) -> 0
F12: 8c | J12: Afternoon | M12: =SUM(K12+L12) -> 0 | P12: =SUM(N12+O12) -> 0 | S12: =SUM(Q12+R12) -> 0
F13: 8d | J13: Afternoon | M13: =SUM(K13+L13) -> 0 | P13: =SUM(N13+O13) -> 0 | S13: =SUM(Q13+R13) -> 0 | W13: Men's Novice Recurve | X13: Men's Novice Compound | Y13: Men's Novice Barebow | Z13: Men's Novice Longbow
F14: 9a | J14: Afternoon | M14: =SUM(K14+L14) -> 0 | P14: =SUM(N14+O14) -> 0 | S14: =SUM(Q14+R14) -> 0 | V14: 1st | W14: Harry Barnett, Exeter, 471, 60 hits, 10 golds | X14: No Archer Submitted | Y14: No Archer Submitted | Z14: Rodolfo Perez, Plymouth, 138,29 hits, 0 golds
F15: 9b | J15: Afternoon | M15: =SUM(K15+L15) -> 0 | P15: =SUM(N15+O15) -> 0 | S15: =SUM(Q15+R15) -> 0 | V15: 2nd | W15: Sam Walters, Exeter, 455, 60 hits, 3 golds | X15: No Archer Submitted | Y15: No Archer Submitted | Z15: No Archer Submitted
F16: 9d | J16: Afternoon | M16: =SUM(K16+L16) -> 0 | P16: =SUM(N16+O16) -> 0 | S16: =SUM(Q16+R16) -> 0 | V16: 3rd | W16: Poom Liamtrakoolpanich, Bristol, 400, 58 hits, 0 golds | X16: No Archer Submitted | Y16: No Archer Submitted | Z16: No Archer Submitted
F17: 7a | M17: =SUM(K17+L17) -> 0 | P17: =SUM(N17+O17) -> 0 | S17: =SUM(Q17+R17) -> 0 | T17: Nov | W17: Lady's Novice Recurve | X17: Lady's Novice Compound | Y17: Lady's Novice Barebow | Z17: Lady's Novice Longbow
E18: Eloise Hepburn | F18: 5a | H18: Lady's Experienced Barebow | I18: Plymouth | J18: Afternoon | L18: 167 | M18: =SUM(K18+L18) -> 167 | O18: 40 | P18: =SUM(N18+O18) -> 40 | R18: 0 | S18: =SUM(Q18+R18) -> 0 | V18: 1st | W18: Ying Ru Chen, Exeter, 333, 59 hits, 3 golds | X18: Angelique Treey, Exeter, 461, 56 hits, 4 golds | Y18: Katie Stubbs, Exeter, 301, 54 hits, 3 golds | Z18: No Archer Submitted
E19: Rodolfo Perez | F19: 5c | H19: Men's Novice Longbow | I19: Plymouth | J19: Morning | K19: 168 | M19: =SUM(K19+L19) -> 168 | P19: =SUM(N19+O19) -> 0 | S19: =SUM(Q19+R19) -> 0 | T19: Exp | V19: 2nd | W19: Hamnah Feisal, Plymouth, 322, 57 hits, 2 golds | X19: Catherine Hughes, Exeter, 457, 57 hits, 2 golds | Y19: Emily Hartley, Exeter, 49 hits, 2 golds | Z19: No Archer Submitted
E20: Jenny Hinks | F20: 7c | H20: Lady's Novice Recurve | I20: Exeter | J20: Afternoon | L20: 171 | M20: =SUM(K20+L20) -> 171 | O20: 39 | P20: =SUM(N20+O20) -> 39 | R20: 1 | S20: =SUM(Q20+R20) -> 1 | V20: 3rd | W20: Guilia Murtas, 185, 40 hits, 1 gold | X20: No Archer Submitted | Y20: Katherine Pollington, Plymouth, 211, 44 hits, 2 golds | Z20: No Archer Submitted
E21: Matt Burrell | F21: 5d | H21: Men's Experienced Longbow | I21: Plymouth | J21: Morning | K21: 179 | M21: =SUM(K21+L21) -> 179 | N21: 38 | P21: =SUM(N21+O21) -> 38 | Q21: 0 | S21: =SUM(Q21+R21) -> 0 | T21: Exp
E22: Guilia Murtas | F22: 4d | H22: Lady's Novice Recurve | I22: Exeter | J22: Morning | K22: 185 | M22: =SUM(K22+L22) -> 185 | N22: 40 | P22: =SUM(N22+O22) -> 40 | Q22: 1 | S22: =SUM(Q22+R22) -> 1 | T22: Exp | W22: Team
E23: Katherine Pollington | F23: 7b | H23: Lady's Novice Barebow | I23: Plymouth | J23: Morning | K23: 211 | M23: =SUM(K23+L23) -> 211 | N23: 44 | P23: =SUM(N23+O23) -> 44 | Q23: 2 | S23: =SUM(Q23+R23) -> 2 | T23: Exp | V23: exeter | W23: 2154
E24: Emily Hartley | F24: 6b | H24: Lady's Novice Barebow | I24: Exeter | J24: Morning | K24: 244 | M24: =SUM(K24+L24) -> 244 | N24: 49 | P24: =SUM(N24+O24) -> 49 | Q24: 2 | S24: =SUM(Q24+R24) -> 2 | T24: Exp | V24: plym | W24: 2144
E25: Alex Day | F25: 4a | H25: Lady's Experienced Barebow | I25: Bristol | J25: Afternoon | L25: 246 | M25: =SUM(K25+L25) -> 246 | O25: 52 | P25: =SUM(N25+O25) -> 52 | R25: 4 | S25: =SUM(Q25+R25) -> 4 | V25: bristol | W25: 2113
E26: Thomas Tarbuck | F26: 7c | H26: Men's Novice Recurve | I26: Plymouth | J26: Morning | K26: 265 | M26: =SUM(K26+L26) -> 265 | N26: 48 | P26: =SUM(N26+O26) -> 48 | Q26: 2 | S26: =SUM(Q26+R26) -> 2 | T26: Exp
E27: Emma King | F27: 5a | H27: Lady's Experienced Longbow | I27: Plymouth | J27: Morning | K27: 268 | M27: =SUM(K27+L27) -> 268 | N27: 50 | P27: =SUM(N27+O27) -> 50 | Q27: 1 | S27: =SUM(Q27+R27) -> 1
E28: Cheong Ren Hann | F28: 6d | H28: Men's Novice Recurve | I28: Bristol | J28: Afternoon | L28: 275 | M28: =SUM(K28+L28) -> 275 | O28: 53 | P28: =SUM(N28+O28) -> 53 | R28: 2 | S28: =SUM(Q28+R28) -> 2
E29: Katie Stubbs | F29: 4c | H29: Lady's Novice Barebow | I29: Exeter | J29: Afternoon | L29: 301 | M29: =SUM(K29+L29) -> 301 | O29: 54 | P29: =SUM(N29+O29) -> 54 | R29: 3 | S29: =SUM(Q29+R29) -> 3
E30: Simon Jarvis | F30: 8b | H30: Men's Novice Recurve | I30: Plymouth | J30: Morning | K30: 307 | M30: =SUM(K30+L30) -> 307 | N30: 57 | P30: =SUM(N30+O30) -> 57 | Q30: 0 | S30: =SUM(Q30+R30) -> 0
E31: Beth Cornford | F31: 6d | H31: Lady's Experienced Barebow | I31: Plymouth | J31: Morning | K31: 312 | M31: =SUM(K31+L31) -> 312 | N31: 54 | P31: =SUM(N31+O31) -> 54 | Q31: 0 | S31: =SUM(Q31+R31) -> 0 | T31: Exp
E32: Hamnah Feisal | F32: 2b | H32: Lady's Novice Recurve | I32: Plymouth | J32: Morning | K32: 322 | M32: =SUM(K32+L32) -> 322 | N32: 57 | P32: =SUM(N32+O32) -> 57 | Q32: 2 | S32: =SUM(Q32+R32) -> 2 | T32: Exp
E33: Jenson Wong | F33: 9c | H33: Men's Novice Recurve | I33: Exeter | J33: Morning | K33: 324 | M33: =SUM( K33+L33) -> 324 | N33: 59 | P33: =SUM(N33+O33) -> 59 | Q33: 2 | S33: =SUM(Q33+R33) -> 2
E34: Ying Ru Chen | F34: 3d | H34: Lady's Novice Recurve | I34: Exeter | J34: Morning | K34: 333 | M34: =SUM(K34+L34) -> 333 | N34: 59 | P34: =SUM(N34+O34) -> 59 | Q34: 3 | S34: =SUM(Q34+R34) -> 3 | T34: Exp
E35: Elsa Cavill | F35: 2c | H35: Lady's Experienced Recurve | I35: Plymouth | J35: Morning | K35: 341 | M35: =SUM(K35+L35) -> 341 | N35: 58 | P35: =SUM(N35+O35) -> 58 | Q35: 2 | S35: =SUM(Q35+R35) -> 2 | T35: Nov
E36: Brandon Toy | F36: 9c | H36: Men's Experienced Barebow | I36: Plymouth | J36: Afternoon | L36: 342 | M36: =SUM(K36+L36) -> 342 | O36: 60 | P36: =SUM(N36+O36) -> 60 | R36: 4 | S36: =SUM(Q36+R36) -> 4
E37: Joe Barham | F37: 5b | H37: Men's Experienced Longbow | I37: Exeter | J37: Morning | K37: 356 | M37: =SUM(K37+L37) -> 356 | N37: 60 | P37: =SUM(N37+O37) -> 60 | Q37: 4 | S37: =SUM(Q37+R37) -> 4 | T37: Exp
E38: Robin Wright | F38: 7b | H38: Men's Novice Recurve | I38: Exeter | J38: Afternoon | L38: 356 | M38: =SUM(K38+L38) -> 356 | O38: 59 | P38: =SUM(N38+O38) -> 59 | R38: 2 | S38: =SUM(Q38+R38) -> 2
E39: (Benny) Lok Man Lam | F39: 4c | H39: Men's Novice Recurve | I39: Plymouth | J39: Morning | K39: 381 | M39: =SUM(K39+L39) -> 381 | N39: 60 | P39: =SUM(N39+O39) -> 60 | Q39: 1 | S39: =SUM(Q39+R39) -> 1 | T39: Exp
E40: Reshuffle Valendio Permana | F40: 2d | H40: Men's Novice Recurve | I40: Bristol | J40: Afternoon | L40: 390 | M40: =SUM(K40+L40) -> 390 | O40: 57 | P40: =SUM(N40+O40) -> 57 | R40: 5 | S40: =SUM(Q40+R40) -> 5
E41: Olly Harris | F41: 1d | H41: Men's Novice Recurve | I41: Bristol | J41: Afternoon | L41: 396 | M41: =SUM(K41+L41) -> 396 | O41: 57 | P41: =SUM(N41+O41) -> 57 | R41: 4 | S41: =SUM(Q41+R41) -> 4
E42: Ted Robinson | F42: 6c | H42: Men's Experienced Barebow | I42: Plymouth | J42: Morning | K42: 398 | M42: =SUM(K42+L42) -> 398 | N42: 60 | P42: =SUM(N42+O42) -> 60 | Q42: 0 | S42: =SUM(Q42+R42) -> 0
E43: Poom Liamtrakoolpanich | F43: 2c | H43: Men's Novice Recurve | I43: Bristol | J43: Afternoon | L43: 400 | M43: =SUM(K43+L43) -> 400 | O43: 58 | P43: =SUM(N43+O43) -> 58 | R43: 0 | S43: =SUM(Q43+R43) -> 0
E44: Matti Storr | F44: 6c | H44: Men's Novice Recurve | I44: Bristol | J44: Afternoon | L44: 400 | M44: =SUM(K44+L44) -> 400 | O44: 58 | P44: =SUM(N44+O44) -> 58 | R44: 7 | S44: =SUM(Q44+R44) -> 7
E45: George Jerman | F45: 3b | H45: Men's Experienced Barebow | I45: Exeter | J45: Afternoon | L45: 403 | M45: =SUM(K45+L45) -> 403 | O45: 60 | P45: =SUM(N45+O45) -> 60 | R45: 3 | S45: =SUM(Q45+R45) -> 3
E46: Sam Woodcock | F46: 3c | H46: Men's Experienced Recurve | I46: Bristol | J46: Afternoon | L46: 407 | M46: =SUM(K46+L46) -> 407 | O46: 60 | P46: =SUM(N46+O46) -> 60 | R46: 4 | S46: =SUM(Q46+R46) -> 4
E47: Rachel Osman | F47: 6b | H47: Lady's Experienced Barebow | I47: Exeter | J47: Afternoon | L47: 417 | M47: =SUM(K47+L47) -> 417 | O47: 59 | P47: =SUM(N47+O47) -> 59 | R47: 8 | S47: =SUM(Q47+R47) -> 8
E48: Alex Gowers | F48: 9b | H48: Men's Experienced Recurve | I48: Plymouth | J48: Morning | K48: 438 | M48: =SUM( K48+L48) -> 438 | N48: 60 | P48: =SUM(N48+O48) -> 60 | Q48: 3 | S48: =SUM(Q48+R48) -> 3
E49: Kellie Pettinger | F49: 7a | H49: Lady's Experienced Recurve | I49: Bristol | J49: Afternoon | L49: 442 | M49: =SUM(K49+L49) -> 442 | O49: 59 | P49: =SUM(N49+O49) -> 59 | R49: 9 | S49: =SUM(Q49+R49) -> 9
E50: Jessica Billington | F50: 3a | H50: Lady's Experienced Recurve | I50: Exeter | J50: Morning | K50: 450 | M50: =SUM(K50+L50) -> 450 | N50: 59 | P50: =SUM(N50+O50) -> 59 | Q50: 5 | S50: =SUM(Q50+R50) -> 5 | T50: Exp
E51: Wyn Firth | F51: 6a | H51: Men's Experienced Barebow | I51: Exeter | J51: Morning | K51: 452 | M51: =SUM(K51+L51) -> 452 | N51: 60 | P51: =SUM(N51+O51) -> 60 | Q51: 6 | S51: =SUM(Q51+R51) -> 6 | T51: Exp
E52: Ben Hodgson | F52: 7d | H52: Men's Experienced Recurve | I52: Plymouth | J52: Morning | K52: 454 | M52: =SUM(K52+L52) -> 454 | N52: 60 | P52: =SUM(N52+O52) -> 60 | Q52: 8 | S52: =SUM(Q52+R52) -> 8 | T52: Exp
E53: Samuel Walters | F53: 8c | H53: Men's Novice Recurve | I53: Exeter | J53: Morning | K53: 455 | M53: =SUM( K53+L53) -> 455 | N53: 60 | P53: =SUM(N53+O53) -> 60 | Q53: 3 | S53: =SUM(Q53+R53) -> 3
E54: Haralambos Pouliasis | F54: 2d | H54: Men's Experienced Recurve | I54: Plymouth | J54: Morning | K54: 456 | M54: =SUM(K54+L54) -> 456 | N54: 60 | P54: =SUM(N54+O54) -> 60 | Q54: 9 | S54: =SUM(Q54+R54) -> 9 | T54: Exp
E55: Catherine Hughes | F55: 1c | H55: Lady's Novice Compound | I55: Exeter | J55: Morning | K55: 457 | M55: =SUM(K55+L55) -> 457 | N55: 57 | P55: =SUM(N55+O55) -> 57 | Q55: 2 | S55: =SUM(Q55+R55) -> 2 | T55: Exp
E56: Angelique Treey | F56: 1b | H56: Lady's Novice Compound | I56: Exeter | J56: Morning | K56: 461 | M56: =SUM(K56+L56) -> 461 | N56: 56 | P56: =SUM(N56+O56) -> 56 | Q56: 4 | S56: =SUM(Q56+R56) -> 4 | T56: Exp
E57: Kerry Marks | F57: 4b | H57: Lady's Experienced Recurve | I57: Plymouth | J57: Morning | K57: 462 | M57: =SUM(K57+L57) -> 462 | N57: 60 | P57: =SUM(N57+O57) -> 60 | Q57: 4 | S57: =SUM(Q57+R57) -> 4 | T57: Exp
E58: Oliver Anderson-Chapman | F58: 3b | H58: Men's Experienced Recurve | I58: Plymouth | J58: Morning | K58: 463 | M58: =SUM(K58+L58) -> 463 | N58: 60 | P58: =SUM(N58+O58) -> 60 | Q58: 4 | S58: =SUM(Q58+R58) -> 4 | T58: Exp
E59: Maddie Speed | F59: 5d | H59: Lady's Experienced Barebow | I59: Exeter | J59: Afternoon | L59: 465 | M59: =SUM(K59+L59) -> 465 | O59: 60 | P59: =SUM(N59+O59) -> 60 | R59: 10 | S59: =SUM(Q59+R59) -> 10
E60: Harry Barnett | F60: 3a | H60: Men's Novice Recurve | I60: Exeter | J60: Afternoon | L60: 471 | M60: =SUM(K60+L60) -> 471 | O60: 60 | P60: =SUM(N60+O60) -> 60 | R60: 10 | S60: =SUM(Q60+R60) -> 10
E61: Amy Roberts | F61: 4a | H61: Lady's Experienced Recurve | I61: Plymouth | J61: Morning | K61: 476 | M61: =SUM(K61+L61) -> 476 | N61: 60 | P61: =SUM(N61+O61) -> 60 | Q61: 7 | S61: =SUM(Q61+R61) -> 7 | T61: Exp
E62: Lee Li Sheng | F62: 4b | H62: Men's Experienced Recurve | I62: Bristol | J62: Afternoon | L62: 476 | M62: =SUM(K62+L62) -> 476 | O62: 60 | P62: =SUM(N62+O62) -> 60 | R62: 20 | S62: =SUM(Q62+R62) -> 20
E63: Will Black | F63: 5c | H63: Men's Experienced Barebow | I63: Bristol | J63: Afternoon | L63: 478 | M63: =SUM(K63+L63) -> 478 | O63: 60 | P63: =SUM(N63+O63) -> 60 | R63: 8 | S63: =SUM(Q63+R63) -> 8
E64: Surabhi Desai | F64: 2a | H64: Lady's Experienced Recurve | I64: Exeter | J64: Morning | K64: 516 | M64: =SUM(K64+L64) -> 516 | N64: 60 | P64: =SUM(N64+O64) -> 60 | Q64: 8 | S64: =SUM(Q64+R64) -> 8 | T64: Exp
E65: Connor Williams | F65: 8a | H65: Men's Experienced Recurve | I65: Exeter | J65: Morning | K65: 519 | M65: =SUM(K65+L65) -> 519 | N65: 60 | P65: =SUM(N65+O65) -> 60 | Q65: 13 | S65: =SUM(Q65+R65) -> 13 | T65: Nov
E66: Luke Canham | F66: 1a | H66: Men's Experienced Recurve | I66: Bath | J66: Afternoon | L66: 523 | M66: =SUM(K66+L66) -> 523 | O66: 60 | P66: =SUM(N66+O66) -> 60 | R66: 20 | S66: =SUM(Q66+R66) -> 20
E67: Lonja Selter | F67: 5b | H67: Men's Experienced Barebow | I67: Plymouth | J67: Afternoon | L67: 527 | M67: =SUM(K67+L67) -> 527 | O67: 60 | P67: =SUM(N67+O67) -> 60 | R67: 15 | S67: =SUM(Q67+R67) -> 15
E68: Kelvin Lu | F68: 4d | H68: Men's Experienced Recurve | I68: Bristol | J68: Afternoon | L68: 536 | M68: =SUM(K68+L68) -> 536 | O68: 60 | P68: =SUM(N68+O68) -> 60 | R68: 44 | S68: =SUM(Q68+R68) -> 44
E69: Aaron Yeung | F69: 6a | H69: Men's Experienced Recurve | I69: Exeter | J69: Afternoon | L69: 537 | M69: =SUM(K69+L69) -> 537 | O69: 60 | P69: =SUM(N69+O69) -> 60 | R69: 19 | S69: =SUM(Q69+R69) -> 19
E70: Thomas Ledgerwood | F70: 1b | H70: Men's Experienced Recurve | I70: Exeter | J70: Afternoon | L70: 539 | M70: =SUM(K70+L70) -> 539 | O70: 60 | P70: =SUM(N70+O70) -> 60 | R70: 12 | S70: =SUM(Q70+R70) -> 12
E71: Phobe Nobel | F71: 3d | H71: Lady's Experienced Recurve | I71: Bristol | J71: Afternoon | L71: 543 | M71: =SUM(K71+L71) -> 543 | O71: 60 | P71: =SUM(N71+O71) -> 60 | R71: 22 | S71: =SUM(Q71+R71) -> 22
E72: Jamie Diep | F72: 2a | H72: Men's Experienced Recurve | I72: Bristol | J72: Afternoon | L72: 556 | M72: =SUM(K72+L72) -> 556 | O72: 60 | P72: =SUM(N72+O72) -> 60 | R72: 26 | S72: =SUM(Q72+R72) -> 26
E73: Jonathan Hui | F73: 3c | H73: Men's Experienced Recurve | I73: Exeter | J73: Morning | K73: 559 | M73: =SUM(K73+L73) -> 559 | N73: 59 | P73: =SUM(N73+O73) -> 59 | Q73: 33 | S73: =SUM(Q73+R73) -> 33 | T73: Exp
E74: Alex Rowe | F74: 2b | H74: Men's Experienced Recurve | I74: Plymouth | J74: Afternoon | L74: 566 | M74: =SUM(K74+L74) -> 566 | O74: 60 | P74: =SUM(N74+O74) -> 60 | R74: 33 | S74: =SUM(Q74+R74) -> 33
E75: Joseph Tripp | F75: 1a | H75: Men's Experienced Recurve | I75: Plymouth | J75: morning | K75: 575 | M75: =SUM(K75+L75) -> 575 | N75: 60 | P75: =SUM(N75+O75) -> 60 | Q75: 36 | S75: =SUM(Q75+R75) -> 36 | T75: Exp
P76: =SUM(N76+O76) -> 0 | S76: =SUM(Q76+R76) -> 0
P77: =SUM(N77+O77) -> 0 | S77: =SUM(Q77+R77) -> 0
P78: =SUM(N78+O78) -> 0 | S78: =SUM(Q78+R78) -> 0
P79: =SUM(N79+O79) -> 0 | S79: =SUM(Q79+R79) -> 0
P80: =SUM(N80+O80) -> 0 | S80: =SUM(Q80+R80) -> 0
P81: =SUM(N81+O81) -> 0 | S81: =SUM(Q81+R81) -> 0
P82: =SUM(N82+O82) -> 0 | S82: =SUM(Q82+R82) -> 0
P83: =SUM(N83+O83) -> 0 | S83: =SUM(Q83+R83) -> 0
P84: =SUM(N84+O84) -> 0 | S84: =SUM(Q84+R84) -> 0
P85: =SUM(N85+O85) -> 0 | S85: =SUM(Q85+R85) -> 0
P86: =SUM(N86+O86) -> 0 | S86: =SUM(Q86+R86) -> 0
P87: =SUM(N87+O87) -> 0 | S87: =SUM(Q87+R87) -> 0
P88: =SUM(N88+O88) -> 0 | S88: =SUM(Q88+R88) -> 0
P89: =SUM(N89+O89) -> 0 | S89: =SUM(Q89+R89) -> 0
P90: =SUM(N90+O90) -> 0 | S90: =SUM(Q90+R90) -> 0
P91: =SUM(N91+O91) -> 0 | S91: =SUM(Q91+R91) -> 0
P92: =SUM(N92+O92) -> 0 | S92: =SUM(Q92+R92) -> 0
P93: =SUM(N93+O93) -> 0 | S93: =SUM(Q93+R93) -> 0
P94: =SUM(N94+O94) -> 0 | S94: =SUM(Q94+R94) -> 0
P95: =SUM(N95+O95) -> 0 | S95: =SUM(Q95+R95) -> 0
P96: =SUM(N96+O96) -> 0 | S96: =SUM(Q96+R96) -> 0
P97: =SUM(N97+O97) -> 0 | S97: =SUM(Q97+R97) -> 0
P98: =SUM(N98+O98) -> 0 | S98: =SUM(Q98+R98) -> 0
P99: =SUM(N99+O99) -> 0 | S99: =SUM(Q99+R99) -> 0
P100: =SUM(N100+O100) -> 0 | S100: =SUM(Q100+R100) -> 0
P101: =SUM(N101+O101) -> 0 | S101: =SUM(Q101+R101) -> 0
P102: =SUM(N102+O102) -> 0 | S102: =SUM(Q102+R102) -> 0
P103: =SUM(N103+O103) -> 0 | S103: =SUM(Q103+R103) -> 0
P104: =SUM(N104+O104) -> 0 | S104: =SUM(Q104+R104) -> 0
P105: =SUM(N105+O105) -> 0 | S105: =SUM(Q105+R105) -> 0
P106: =SUM(N106+O106) -> 0 | S106: =SUM(Q106+R106) -> 0
P107: =SUM(N107+O107) -> 0 | S107: =SUM(Q107+R107) -> 0
P108: =SUM(N108+O108) -> 0 | S108: =SUM(Q108+R108) -> 0
P109: =SUM(N109+O109) -> 0 | S109: =SUM(Q109+R109) -> 0
P110: =SUM(N110+O110) -> 0 | S110: =SUM(Q110+R110) -> 0
P111: =SUM(N111+O111) -> 0 | S111: =SUM(Q111+R111) -> 0
P112: =SUM(N112+O112) -> 0 | S112: =SUM(Q112+R112) -> 0
P113: =SUM(N113+O113) -> 0 | S113: =SUM(Q113+R113) -> 0
P114: =SUM(N114+O114) -> 0 | S114: =SUM(Q114+R114) -> 0
P115: =SUM(N115+O115) -> 0 | S115: =SUM(Q115+R115) -> 0
P116: =SUM(N116+O116) -> 0 | S116: =SUM(Q116+R116) -> 0
P117: =SUM(N117+O117) -> 0 | S117: =SUM(Q117+R117) -> 0
P118: =SUM(N118+O118) -> 0 | S118: =SUM(Q118+R118) -> 0
P119: =SUM(N119+O119) -> 0 | S119: =SUM(Q119+R119) -> 0
P120: =SUM(N120+O120) -> 0 | S120: =SUM(Q120+R120) -> 0
P121: =SUM(N121+O121) -> 0 | S121: =SUM(Q121+R121) -> 0
P122: =SUM(N122+O122) -> 0 | S122: =SUM(Q122+R122) -> 0
P123: =SUM(N123+O123) -> 0 | S123: =SUM(Q123+R123) -> 0
P124: =SUM(N124+O124) -> 0 | S124: =SUM(Q124+R124) -> 0
P125: =SUM(N125+O125) -> 0 | S125: =SUM(Q125+R125) -> 0
P126: =SUM(N126+O126) -> 0 | S126: =SUM(Q126+R126) -> 0
P127: =SUM(N127+O127) -> 0 | S127: =SUM(Q127+R127) -> 0
P128: =SUM(N128+O128) -> 0 | S128: =SUM(Q128+R128) -> 0
P129: =SUM(N129+O129) -> 0 | S129: =SUM(Q129+R129) -> 0
P130: =SUM(N130+O130) -> 0 | S130: =SUM(Q130+R130) -> 0
P131: =SUM(N131+O131) -> 0 | S131: =SUM(Q131+R131) -> 0
P132: =SUM(N132+O132) -> 0 | S132: =SUM(Q132+R132) -> 0
P133: =SUM(N133+O133) -> 0 | S133: =SUM(Q133+R133) -> 0
P134: =SUM(N134+O134) -> 0 | S134: =SUM(Q134+R134) -> 0
P135: =SUM(N135+O135) -> 0 | S135: =SUM(Q135+R135) -> 0
P136: =SUM(N136+O136) -> 0 | S136: =SUM(Q136+R136) -> 0
P137: =SUM(N137+O137) -> 0 | S137: =SUM(Q137+R137) -> 0
P138: =SUM(N138+O138) -> 0 | S138: =SUM(Q138+R138) -> 0
P139: =SUM(N139+O139) -> 0 | S139: =SUM(Q139+R139) -> 0
P140: =SUM(N140+O140) -> 0 | S140: =SUM(Q140+R140) -> 0
P141: =SUM(N141+O141) -> 0 | S141: =SUM(Q141+R141) -> 0
P142: =SUM(N142+O142) -> 0 | S142: =SUM(Q142+R142) -> 0
P143: =SUM(N143+O143) -> 0 | S143: =SUM(Q143+R143) -> 0
P144: =SUM(N144+O144) -> 0 | S144: =SUM(Q144+R144) -> 0
P145: =SUM(N145+O145) -> 0 | S145: =SUM(Q145+R145) -> 0
P146: =SUM(N146+O146) -> 0 | S146: =SUM(Q146+R146) -> 0
P147: =SUM(N147+O147) -> 0 | S147: =SUM(Q147+R147) -> 0
P148: =SUM(N148+O148) -> 0 | S148: =SUM(Q148+R148) -> 0
P149: =SUM(N149+O149) -> 0 | S149: =SUM(Q149+R149) -> 0
P150: =SUM(N150+O150) -> 0 | S150: =SUM(Q150+R150) -> 0
P151: =SUM(N151+O151) -> 0 | S151: =SUM(Q151+R151) -> 0
P152: =SUM(N152+O152) -> 0 | S152: =SUM(Q152+R152) -> 0
P153: =SUM(N153+O153) -> 0 | S153: =SUM(Q153+R153) -> 0
P154: =SUM(N154+O154) -> 0 | S154: =SUM(Q154+R154) -> 0
P155: =SUM(N155+O155) -> 0 | S155: =SUM(Q155+R155) -> 0
P156: =SUM(N156+O156) -> 0 | S156: =SUM(Q156+R156) -> 0
P157: =SUM(N157+O157) -> 0 | S157: =SUM(Q157+R157) -> 0
P158: =SUM(N158+O158) -> 0 | S158: =SUM(Q158+R158) -> 0
P159: =SUM(N159+O159) -> 0 | S159: =SUM(Q159+R159) -> 0
P160: =SUM(N160+O160) -> 0 | S160: =SUM(Q160+R160) -> 0
P161: =SUM(N161+O161) -> 0 | S161: =SUM(Q161+R161) -> 0
P162: =SUM(N162+O162) -> 0 | S162: =SUM(Q162+R162) -> 0
P163: =SUM(N163+O163) -> 0 | S163: =SUM(Q163+R163) -> 0
P164: =SUM(N164+O164) -> 0 | S164: =SUM(Q164+R164) -> 0
P165: =SUM(N165+O165) -> 0 | S165: =SUM(Q165+R165) -> 0
P166: =SUM(N166+O166) -> 0 | S166: =SUM(Q166+R166) -> 0
P167: =SUM(N167+O167) -> 0 | S167: =SUM(Q167+R167) -> 0
P168: =SUM(N168+O168) -> 0 | S168: =SUM(Q168+R168) -> 0
P169: =SUM(N169+O169) -> 0 | S169: =SUM(Q169+R169) -> 0
P170: =SUM(N170+O170) -> 0 | S170: =SUM(Q170+R170) -> 0
P171: =SUM(N171+O171) -> 0 | S171: =SUM(Q171+R171) -> 0
P172: =SUM(N172+O172) -> 0 | S172: =SUM(Q172+R172) -> 0
P173: =SUM(N173+O173) -> 0 | S173: =SUM(Q173+R173) -> 0
P174: =SUM(N174+O174) -> 0 | S174: =SUM(Q174+R174) -> 0
P175: =SUM(N175+O175) -> 0 | S175: =SUM(Q175+R175) -> 0
P176: =SUM(N176+O176) -> 0 | S176: =SUM(Q176+R176) -> 0
P177: =SUM(N177+O177) -> 0 | S177: =SUM(Q177+R177) -> 0
P178: =SUM(N178+O178) -> 0 | S178: =SUM(Q178+R178) -> 0
P179: =SUM(N179+O179) -> 0 | S179: =SUM(Q179+R179) -> 0
P180: =SUM(N180+O180) -> 0 | S180: =SUM(Q180+R180) -> 0
P181: =SUM(N181+O181) -> 0 | S181: =SUM(Q181+R181) -> 0
P182: =SUM(N182+O182) -> 0 | S182: =SUM(Q182+R182) -> 0
P183: =SUM(N183+O183) -> 0 | S183: =SUM(Q183+R183) -> 0
P184: =SUM(N184+O184) -> 0 | S184: =SUM(Q184+R184) -> 0
P185: =SUM(N185+O185) -> 0 | S185: =SUM(Q185+R185) -> 0
P186: =SUM(N186+O186) -> 0 | S186: =SUM(Q186+R186) -> 0
P187: =SUM(N187+O187) -> 0 | S187: =SUM(Q187+R187) -> 0
P188: =SUM(N188+O188) -> 0 | S188: =SUM(Q188+R188) -> 0
P189: =SUM(N189+O189) -> 0 | S189: =SUM(Q189+R189) -> 0
P190: =SUM(N190+O190) -> 0 | S190: =SUM(Q190+R190) -> 0
P191: =SUM(N191+O191) -> 0 | S191: =SUM(Q191+R191) -> 0
P192: =SUM(N192+O192) -> 0 | S192: =SUM(Q192+R192) -> 0
P193: =SUM(N193+O193) -> 0 | S193: =SUM(Q193+R193) -> 0
P194: =SUM(N194+O194) -> 0 | S194: =SUM(Q194+R194) -> 0
P195: =SUM(N195+O195) -> 0 | S195: =SUM(Q195+R195) -> 0
P196: =SUM(N196+O196) -> 0 | S196: =SUM(Q196+R196) -> 0
P197: =SUM(N197+O197) -> 0 | S197: =SUM(Q197+R197) -> 0
P198: =SUM(N198+O198) -> 0 | S198: =SUM(Q198+R198) -> 0
P199: =SUM(N199+O199) -> 0 | S199: =SUM(Q199+R199) -> 0
P200: =SUM(N200+O200) -> 0 | S200: =SUM(Q200+R200) -> 0
P201: =SUM(N201+O201) -> 0 | S201: =SUM(Q201+R201) -> 0
P202: =SUM(N202+O202) -> 0 | S202: =SUM(Q202+R202) -> 0
... 103 more rows

Sheet Running Total
B3: Name | C3: Target | D3: Category | E3: University | F3: Session | G3: 1st Doz | H3: 2nd Doz | I3: 3rd Doz | J3: 4th Doz | K3: 5th Doz | L3: Total | M3: Hits
B4: Joseph Tripp | C4: 1a | D4: Men's Experienced Recurve | E4: Plymouth | F4: Morning | G4: 112 | H4: 115 | I4: 115 | J4: 116 | K4: 117 | L4: =SUM(G4+H4+I4+J4+K4) -> 575 | M4: 60 | N4: 36
B5: Angelique Treey | C5: 1b | D5: Lady's Novice Compound | E5: Exeter | F5: Morning | G5: 95 | H5: 88 | I5: 102 | J5: 95 | K5: 81 | L5: =SUM(G5+H5+I5+J5+K5) -> 461 | M5: 56 | N5: 4
B6: Catherine Hughes | C6: 1c | D6: Lady's Novice Compound | E6: Exeter | F6: Morning | G6: 107 | H6: 90 | I6: 89 | J6: 93 | K6: 78 | L6: 457 | M6: 57 | N6: 2
L7: 0
B8: Surabhi Desai | C8: 2a | F8: Morning | G8: 106 | H8: 99 | I8: 106 | J8: 102 | K8: 103 | L8: 516 | M8: 60 | N8: 8
B9: Hamnah Feisal | C9: 2b | D9: Lady's Novice Recurve | E9: Plymouth | F9: Morning | G9: 60 | H9: 71 | I9: 54 | J9: 74 | K9: 63 | L9: 322 | M9: 57 | N9: 2
B10: Elsa Cavill | C10: 2c | D10: Lady's Experienced Recurve | E10: Plymouth | F10: Morning | G10: 70 | H10: 62 | I10: 62 | J10: 77 | K10: 70 | L10: 341 | M10: 58 | N10: 2
B11: Haralambos Pouliasis | C11: 2d | D11: Men's Experienced Recurve | E11: Plymouth | F11: Morning | G11: 88 | H11: 84 | I11: 80 | J11: 94 | K11: 110 | L11: 456 | M11: 60 | N11: 9
B12: Jessica Billington | C12: 3a | D12: Lady's Experienced Recurve | E12: Exeter | F12: Morning | G12: 100 | H12: 88 | I12: 79 | J12: 92 | K12: 91 | L12: 450 | M12: 59 | N12: 5
B13: Oliver Anderson-Chapman | C13: 3b | D13: Men's Experienced Recurve | E13: Plymouth | F13: Morning | G13: 94 | H13: 90 | I13: 96 | J13: 95 | K13: 88 | L13: 463 | M13: 60 | N13: 4
B14: Jonathon Hui | C14: 3c | F14: Morning | G14: 114 | H14: 112 | I14: 114 | J14: 104 | K14: 115 | L14: 559 | M14: 59 | N14: 33
B15: Ying Ru Chen | C15: 3d | F15: Morning | G15: 70 | H15: 82 | I15: 48 | J15: 71 | K15: 62 | L15: 333 | M15: 59 | N15: 3
B16: Amy Roberts | C16: 4a | D16: Lady's Experienced Recurve | E16: Plymouth | F16: Morning | G16: 93 | H16: 100 | I16: 88 | J16: 101 | K16: 94 | L16: 476 | M16: 60 | N16: 7
B17: Kerry Marks | C17: 4b | D17: Lady's Experienced Recurve | E17: Plymouth | F17: Morning | G17: 89 | H17: 95 | I17: 92 | J17: 95 | K17: 91 | L17: 462 | M17: 60 | N17: 4
B18: (Benny) Lok Man Lam | C18: 4c | D18: Men's Novice Recurve | E18: Plymouth | F18: Morning | G18: 71 | H18: 87 | I18: 63 | J18: 82 | K18: 78 | L18: 381 | M18: 60 | N18: 1
B19: Guilia Murtas | C19: 4d | D19: Lady's Novice Recurve | E19: Exeter | F19: Morning | G19: 42 | H19: 37 | I19: 38 | J19: 19 | K19: 49 | L19: 185 | M19: 40 | N19: 1
B20: Emma King | C20: 5a | D20: Lady's Experienced Longbow | E20: Plymouth | F20: Morning | G20: 43 | H20: 69 | I20: 53 | J20: 39 | K20: 64 | L20: 268 | M20: 50 | N20: 1
B21: Joe Barham | C21: 5b | D21: Men's Experienced Longbow | E21: Exeter | F21: Morning | G21: 66 | H21: 72 | I21: 79 | J21: 68 | K21: 71 | L21: 356 | M21: 60 | N21: 4
B22: Rodolfo Perez | C22: 5c | D22: Men's Novice Longbow | E22: Plymouth | F22: Morning | G22: 44 | H22: 46 | I22: 48 | L22: 138
B23: Matt Burrell | C23: 5d | D23: Men's Experienced Longbow | E23: Plymouth | F23: Morning | G23: 22 | H23: 37 | I23: 31 | J23: 52 | K23: 37 | L23: 179 | M23: 38 | N23: 0
B24: Wyn Firth | C24: 6a | D24: Men's Experienced Barebow | E24: Exeter | F24: Morning | G24: 84 | H24: 96 | I24: 95 | J24: 92 | K24: 85 | L24: 452 | M24: 60 | N24: 6
B25: Emily Hartley | C25: 6b | D25: Lady's Novice Barebow | E25: Exeter | F25: Morning | G25: 31 | H25: 24 | I25: 57 | J25: 61 | K25: 71 | L25: 244 | M25: 49 | N25: 2
B26: Ted Robinson | C26: 6c | D26: Men's Experienced Barebow | E26: Plymouth | F26: Morning | G26: 87 | H26: 81 | I26: 77 | J26: 79 | K26: 74 | L26: 398 | M26: 60 | N26: 0
B27: Beth Cornford | C27: 6d | D27: Lady's Experienced Barebow | E27: Plymouth | F27: Morning | G27: 71 | H27: 57 | I27: 65 | J27: 63 | K27: 56 | L27: 312 | M27: 54 | N27: 0
C28: 7a | F28: Morning | L28: 0
B29: KT Pollington | C29: 7b | D29: Lady's Novice Barebow | E29: Plymouth | F29: Morning | G29: 33 | H29: 27 | I29: 47 | J29: 29 | K29: 75 | L29: 211 | M29: 44 | N29: 2
B30: Thomas Tarbuck | C30: 7c | D30: Men's Novice Recurve | E30: Plymouth | F30: Morning | G30: 61 | H30: 62 | I30: 56 | J30: 59 | K30: 27 | L30: 265 | M30: 48 | N30: 2
B31: Ben Hodgson | C31: 7d | D31: Men's Experienced Recurve | E31: Plymouth | F31: Morning | G31: 84 | H31: 99 | I31: 83 | J31: 96 | K31: 92 | L31: 454 | M31: 60 | N31: 8
B32: Connor Williams | C32: 8a | D32: Men's Experienced Recurve | E32: Exeter | F32: Morning | G32: 99 | H32: 106 | I32: 107 | J32: 109 | K32: 98 | L32: 519 | M32: 60 | N32: 13
B33: Simon Jarvis | C33: 8b | D33: Men's Novice Recurve | E33: Plymouth | F33: Morning | G33: 52 | H33: 70 | I33: 72 | J33: 58 | K33: 55 | L33: 307 | M33: 57 | N33: 0
B34: Samuel Walters | C34: 8c | F34: Morning | G34: 90 | H34: 86 | I34: 100 | J34: 91 | K34: 88 | L34: 455 | M34: 60 | N34: 3
C35: 8d | F35: Morning | L35: 0
C36: 9a | F36: Morning | L36: 0
B37: Alex Gowers | C37: 9b | D37: Men's Experienced Recurve | E37: Plymouth | F37: Morning | G37: 88 | H37: 88 | I37: 86 | J37: 83 | K37: 93 | L37: 438 | M37: 60 | N37: 3
B38: Jenson Wong | C38: 9c | F38: Morning | G38: 79 | H38: 67 | I38: 64 | J38: 41 | K38: 73 | L38: 324 | M38: 59 | N38: 2
B39: Semmens | C39: 9d | F39: Morning | G39: 44 | H39: 40 | I39: 38 | J39: 37 | K39: 39 | L39: 198 | M39: 42 | N39: 1
B40: Luke Canham | C40: 1a | D40: Men's Experienced Recurve | E40: Bath | F40: Afternoon | G40: 104 | H40: 108 | I40: 111 | J40: 102 | K40: 98 | L40: 523 | M40: 60 | N40: 20
B41: Thomas Ledgerwood | C41: 1b | D41: Men's Experienced Recurve | E41: Exeter | F41: Afternoon | G41: 103 | H41: 110 | I41: 112 | J41: 108 | K41: 106 | L41: 539 | M41: 60 | N41: 12
L42: 0
B43: Olly Harris | C43: 1d | D43: Men's Novice Recurve | E43: Bristol | F43: Afternoon | G43: 78 | H43: 82 | I43: 71 | J43: 81 | K43: 84 | L43: 396 | M43: 57 | N43: 4
B44: Jamie Diep | C44: 2a | D44: Men's Experienced Recurve | E44: Bristol | F44: Afternoon | G44: 113 | H44: 108 | I44: 113 | J44: 111 | K44: 111 | L44: 556 | M44: 60 | N44: 26
B45: Alex Rowe | C45: 2b | D45: Men's Experienced Recurve | E45: Plymouth | F45: Afternoon | G45: 116 | H45: 111 | I45: 112 | J45: 112 | K45: 115 | L45: 566 | M45: 60 | N45: 33
B46: Poom Liamtrakoolpanich | C46: 2c | D46: Men's Novice Recurve | E46: Bristol | F46: Afternoon | G46: 75 | H46: 84 | I46: 66 | J46: 90 | K46: 85 | L46: 400 | M46: 58 | N46: 0
B47: Reshuffle Valendio Permana | C47: 2d | D47: Men's Novice Recurve | E47: Bristol | F47: Afternoon | G47: 62 | H47: 94 | I47: 83 | J47: 62 | K47: 89 | L47: 390 | M47: 57 | N47: 5
B48: Harry Barnett | C48: 3a | D48: Men's Novice Recurve | E48: Exeter | F48: Afternoon | G48: 97 | H48: 93 | I48: 100 | J48: 91 | K48: 90 | L48: 471 | M48: 60 | N48: 10
B49: George Jerman | C49: 3b | D49: Men's Experienced Barebow | E49: Exeter | F49: Afternoon | G49: 81 | H49: 68 | I49: 82 | J49: 87 | K49: 85 | L49: 403 | M49: 60 | N49: 3
B50: Sam Woodcock | C50: 3c | D50: Men's Experienced Recurve | E50: Bristol | F50: Afternoon | G50: 67 | H50: 93 | I50: 86 | J50: 67 | K50: 94 | L50: 407 | M50: 60 | N50: 4
B51: Phobe Nobel | C51: 3d | D51: Lady's Experienced Recurve | E51: Bristol | F51: Afternoon | G51: 111 | H51: 109 | I51: 112 | J51: 105 | K51: 106 | L51: 543 | M51: 60 | N51: 22
B52: Alex Day | C52: 4a | D52: Lady's Experienced Barebow | E52: Bristol | F52: Afternoon | G52: 36 | H52: 60 | I52: 49 | J52: 51 | K52: 50 | L52: 246 | M52: 52 | N52: 4
B53: Lee Li Sheng | C53: 4b | D53: Men's Experienced Recurve | E53: Bristol | F53: Afternoon | G53: 92 | H53: 91 | I53: 103 | J53: 95 | K53: 95 | L53: 476 | M53: 60 | N53: 20
B54: Katie Stubbs | C54: 4c | D54: Lady's Novice Barebow | E54: Exeter | F54: Afternoon | G54: 49 | H54: 47 | I54: 65 | J54: 63 | K54: 77 | L54: 301 | M54: 54 | N54: 3
B55: Kelvin Lu | C55: 4d | D55: Men's Experienced Recurve | E55: Bristol | F55: Afternoon | G55: 107 | H55: 109 | I55: 106 | J55: 108 | K55: 106 | L55: 536 | M55: 60 | N55: 44
B56: Eloise Hepburn | C56: 5a | D56: Lady's Experienced Barebow | E56: Plymouth | F56: Afternoon | G56: 28 | H56: 57 | I56: 29 | J56: 22 | K56: 31 | L56: 167 | M56: 40 | N56: 0
B57: Lonja Selter | C57: 5b | D57: Men's Experienced Barebow | E57: Plymouth | F57: Afternoon | G57: 105 | H57: 101 | I57: 107 | J57: 105 | K57: 109 | L57: 527 | M57: 60 | N57: 15
B58: Will Black | C58: 5c | D58: Men's Experienced Barebow | E58: Bristol | F58: Afternoon | G58: 92 | H58: 90 | I58: 104 | J58: 96 | K58: 96 | L58: 478 | M58: 60 | N58: 8
B59: Maddie Speed | C59: 5d | D59: Lady's Experienced Barebow | E59: Exeter | F59: Afternoon | G59: 104 | H59: 87 | I59: 88 | J59: 90 | K59: 96 | L59: 465 | M59: 60 | N59: 10
B60: Aaron Yeung | C60: 6a | D60: Men's Experienced Recurve | E60: Exeter | F60: Afternoon | G60: 103 | H60: 106 | I60: 106 | J60: 108 | K60: 114 | L60: 537 | M60: 60 | N60: 19
B61: Rachel Osman | C61: 6b | D61: Lady's Experienced Barebow | E61: Exeter | F61: Afternoon | G61: 88 | H61: 87 | I61: 83 | J61: 86 | K61: 73 | L61: 417 | M61: 59 | N61: 8
B62: Matti Storr | C62: 6c | D62: Men's Novice Recurve | E62: Bristol | F62: Afternoon | G62: 57 | H62: 76 | I62: 78 | J62: 95 | K62: 94 | L62: 400 | M62: 58 | N62: 7
B63: Cheong Ren Hann | C63: 6d | D63: Men's Novice Recurve | E63: Bristol | F63: Afternoon | G63: 38 | H63: 73 | I63: 48 | J63: 50 | K63: 66 | L63: 275 | M63: 53 | N63: 2
B64: Kellie Pettinger | C64: 7a | D64: Lady's Experienced Recurve | E64: Bristol | F64: Afternoon | G64: 89 | H64: 94 | I64: 87 | J64: 88 | K64: 84 | L64: 442 | M64: 59 | N64: 9
B65: Robin Wright | C65: 7b | D65: Men's Novice Recurve | E65: Exeter | F65: Afternoon | G65: 56 | H65: 67 | I65: 70 | J65: 83 | K65: 80 | L65: 356 | M65: 59 | N65: 2
B66: Jenny Hinks | C66: 7c | D66: Lady's Novice Recurve | E66: Exeter | F66: Afternoon | G66: 32 | H66: 40 | I66: 43 | J66: 27 | K66: 29 | L66: 171 | M66: 39 | N66: 1
C67: 7d | F67: Afternoon | L67: 0
C68: 8a | F68: Afternoon | L68: 0
C69: 8b | F69: Afternoon | L69: =SUM(G69+H69+I69+J69+K69) -> 0
C70: 8c | F70: Afternoon | L70: 0
C71: 8d | F71: Afternoon | L71: 0
C72: 9a | F72: Afternoon | L72: 0
C73: 9b | F73: Afternoon | L73: 0
B74: Brandon Toy | C74: 9c | D74: Men's Experienced Barebow | E74: Plymouth | F74: Afternoon | G74: 72 | H74: 71 | I74: 67 | J74: 76 | K74: 56 | L74: 342 | M74: 60 | N74: 4
C75: 9d | F75: Afternoon | L75: 0

Sheet Combined with Aber
B2: Male Novice Barebow | C2: Score | D2: Club | G2: Male Experienced Barebow | H2: Score | I2: Club
A3: 1st | B3: Thanos | C3: 446 | D3: Swansea | F3: 1st | G3: Lonja Selter | H3: 527 | I3: Plymouth
A4: 2nd | B4: Tomas Svejnoha | C4: 408 | D4: Swansea | F4: 2nd | G4: James Hayday | H4: 506 | I4: Swansea
A5: 3rd | B5: Tom Page | C5: 370 | D5: Aber | F5: 3rd | G5: Will Black | H5: 478 | I5: Bristol
B7: Female Novice Barebow | C7: Score | D7: Club | G7: Female Experienced Barebow | H7: Score | I7: Club
A8: 1st | B8: Aubrey Rene Whitish | C8: 302 | D8: Swansea | F8: 1st | G8: Maddie Speed | H8: 465 | I8: Exeter
A9: 2nd | B9: Katie Stubbs | C9: 301 | D9: Exeter | F9: 2nd | G9: Rachel Osman | H9: 417 | I9: Exeter
A10: 3rd | B10: Emily Hartley | C10: 244 | D10: Exeter | F10: 3rd | G10: Beth Cornford | H10: 312 | I10: Plymouth
B12: Male Novice Recurve | C12: Score | D12: Club | G12: Male Experienced Recurve | H12: Score | I12: Club
A13: 1st | B13: Harry Barnett | C13: 471 | D13: Exeter | F13: 1st | G13: Joe Tripp | H13: 575 | I13: Plymouth
A14: 2nd | B14: Sam Walters | C14: 455 | D14: Exeter | F14: 2nd | G14: Alex Rowe | H14: 566 | I14: Plymouth
A15: 3rd | B15: Sonny Loveridge | C15: 405 | D15: Aber | F15: 3rd | G15: Jonathon Hui | H15: 559 | I15: Exeter
B17: Female Novice Recurve | C17: Score | D17: Club | G17: Female Experienced Recurve | H17: Score | I17: Club
A18: 1st | B18: Rilet Brightwell | C18: 443 | D18: Swansea | F18: 1st | G18: Phobe Nobel | H18: 543 | I18: Bristol
A19: 2nd | B19: Ying Ru Chen | C19: 333 | D19: Exeter | F19: 2nd | G19: Surabhi Desei | H19: 516 | I19: Exeter
A20: 3rd | B20: Hamnah Feisal | C20: 322 | D20: Plymouth | F20: 3rd | G20: Amy Roberts/Nicole Almond | H20: 476 | I20: Plymouth/Swansea
B22: Male Novice Compound | C22: Score | D22: Club | G22: Male Experienced Compound | H22: Score | I22: Club
A23: 1st | B23: No Archer Submitted | F23: 1st | G23: Chris Cassels | H23: 581 | I23: Aber
A24: 2nd | B24: No Archer Submitted | F24: 2nd | G24: Tom Jackson | H24: 559 | I24: Swansea
A25: 3rd | B25: No Archer Submitted | F25: 3rd | G25: No Archer Submitted
B27: Female Novice Compound | C27: Score | D27: Club | G27: Female Experienced Compound | H27: Score | I27: Club
A28: 1st | B28: Angelique Treey | C28: 461 | D28: Exeter | F28: 1st | G28: No Archer Submitted
A29: 2nd | B29: Catherine Hughes | C29: 457 | D29: Exeter | F29: 2nd | G29: No Archer Submitted
A30: 3rd | B30: No Archer Submitted | F30: 3rd | G30: No Archer Submitted
B32: Male Novice Longbow | C32: Score | D32: Club | G32: Male Experienced Longbow | H32: Score | I32: Club
A33: 1st | B33: Rodolfo Perez | C33: 138 | D33: Plymouth | F33: 1st | G33: Alex Newnes | H33: 513 | I33: Aber
A34: 2nd | B34: No Archer Submitted | F34: 2nd | G34: Joe Barham | H34: 356 | I34: Exeter
A35: 3rd | B35: No Archer Submitted | F35: 3rd | G35: Matt Walker | H35: 239 | I35: Swansea
B37: Female Novice Longbow | C37: Score | D37: Club | G37: Female Experienced Longbow | H37: Score | I37: Club
A38: 1st | B38: Keely Pringle | C38: 185 | D38: Swansea | F38: 1st | G38: Beth Duthie | H38: 391 | I38: Aber
A39: 2nd | B39: No Archer Submitted | F39: 2nd | G39: Emma King | H39: 268 | I39: Plymouth
A40: 3rd | B40: No Archer Submitted | F40: 3rd | G40: No Archer Submitted
C42: Team Scores (Experienced)
C43: 1st | D43: Exeter | E43: 2154
C44: 2nd | D44: Plymouth | E44: 2144
C45: 3rd | D45: Bristol | E45: 2113
C47: Team Scores (Novice)
C48: 1st | D48: Swansea | E48: 1680
C49: 2nd | D49: Exeter | E49: 1615
C50: 3rd | D50: Bristol | E50: 1586
